Workbook

Sheet паспорт
A1: ПАТ "УКРТРАНСГАЗ" | H1: ПАСПОРТ ФІЗИКО-ХІМІЧНИХ ПОКАЗНИКІВ ПРИРОДНОГО ГАЗУ № 656
A2: Філія УМГ"Харківтрансгаз" | I2: переданого УМГ "ХАРКІВТРАНСГАЗ" Херсонським ЛВУМГ та прийнятого ПАТ "Херсонгаз" , ТОВ "РИТЕЙЛ- КР", РВУ "Харьківавтогаз", ТОВ "ТЕК"ІТЕРА"
A3: Херсонське ЛВУМГ | J3: по газопроводу Мар'ївка-Херсон, Херсон-Крим за період з 01.05.2017 по 31.05.2017 ( точка відбору ГРС -1 Херсон)
A4: Вимірювальна хіміко-аналітична лабораторія | O4: МАРШРУТ № 656
A5: Свідоцтво про атестацію № РЧ 161/2015 дійсне до 01.01.2019 р.
A7: Число місяця | B7: Компонентний склад, мол. % | N7: Фізико-хімічні показники газу обчислені на основі компонентного складу, 101,325 кПа | X7: Температура точки роси за вологою (Р = 3.92 МПа), °С | Y7: Температура точки роси за вуглеводнями, °С | Z7: Вміст сірководню, г/м3 | AA7: Вміст меркаптанової сірки, г/м3 | AB7: Вміст механічних домішок, г/м3
N8: Густина абсолютна, кг/м3,при 20 °С, | O8: Температура вимірювання/згоряння при 20/25°С
B9: метан, С1 | C9: етан, С2 | D9: пропан, С3 | E9: ізо-бутан, і-С4 | F9: н-бутан, н-С4 | G9: нео-пентан, нео-С5 | H9: ізо-пентан, і-С5 | I9: н-пентан, н-С5 | J9: гексани та вищі, С6+ | K9: кисень, О2 | L9: азот, N2 | M9: діоксид вуглецю, CО2 | O9: Теплота згоряння нижча | R9: Теплота згоряння вища | U9: Число Воббе вище
O10: ккал/м³ | P10: МДж/м³ | Q10: кВт⋅год/м³ | R10: ккал/м³ | S10: МДж/м³ | T10: кВт⋅год/м³ | U10: ккал/м³ | V10: МДж/м³ | W10: кВт⋅год/м³
A11: 1 | O11: =P11*238.8459 -> 8243.312431 | P11: 34.5131 | Q11: =P11/3.6 -> 9.586972222 | R11: =S11*238.8459 -> 9138.435211 | S11: 38.2608 | T11: =S11/3.6 -> 10.628 | U11: 11931.61859 | V11: 49.9553 | W11: 13.87647222
A12: 2 | O12: =P12*238.8459 -> 8243.312431 | P12: 34.5131 | Q12: =P12/3.6 -> 9.586972222 | R12: =S12*238.8459 -> 9138.435211 | S12: 38.2608 | T12: =S12/3.6 -> 10.628 | U12: 11931.61859 | V12: 49.9553 | W12: 13.87647222
A13: 3 | B13: 95.381 | C13: 2.5554 | D13: 0.8137 | E13: 0.1345 | F13: 0.128 | G13: <0,001 | H13: 0.0258 | I13: 0.0178 | J13: 0.0121 | K13: 0.0102 | L13: 0.7213 | M13: 0.1996 | N13: 0.7047 | O13: 8234.427364 | P13: 34.4759 | Q13: 9.576638889 | R13: 9129.120221 | S13: 38.2218 | T13: 10.61716667 | U13: =V13*238.8459 -> 11934.60416 | V13: 49.9678 | W13: =V13/3.6 -> 13.87994444 | X13: * | Y13: * | Z13: <0,0001 | AA13: 0.00033 | AD13: =IF(AC13=100,"ОК"," ") -> 
A14: 4 | B14: 95.4221 | C14: 2.4847 | D14: 0.7921 | E14: 0.13 | F14: 0.1293 | G14: <0,001 | H14: 0.0279 | I14: 0.0199 | J14: 0.019 | K14: 0.0065 | L14: 0.7649 | M14: 0.203 | N14: 0.7046 | O14: 8226.426026 | P14: 34.4424 | Q14: 9.567333333 | R14: 9120.402345 | S14: 38.1853 | T14: 10.60702778 | U14: =V14*238.8459 -> 11924.83536 | V14: 49.9269 | W14: =V14/3.6 -> 13.86858333 | X14: * | Y14: * | AB14: відсут. | AD14: =IF(AC14=100,"ОК"," ") -> 
A15: 5 | B15: 94.9922 | C15: 2.6887 | D15: 0.8647 | E15: 0.1374 | F15: 0.1457 | G15: <0,001 | H15: 0.0331 | I15: 0.0246 | J15: 0.0245 | K15: 0.0063 | L15: 0.8515 | M15: 0.2304 | N15: 0.7082 | O15: 8247.73108 | P15: 34.5316 | Q15: 9.592111111 | R15: 9142.901629 | S15: 38.2795 | T15: 10.63319444 | U15: 11923.64114 | V15: 49.9219 | W15: 13.86719444 | X15: * | Y15: *
A16: 6 | O16: 8247.73108 | P16: 34.5316 | Q16: 9.592111111 | R16: 9142.901629 | S16: 38.2795 | T16: 10.63319444 | U16: 11923.64114 | V16: 49.9219 | W16: 13.86719444
A17: 7 | O17: 8247.73108 | P17: 34.5316 | Q17: 9.592111111 | R17: 9142.901629 | S17: 38.2795 | T17: 10.63319444 | U17: 11923.64114 | V17: 49.9219 | W17: 13.86719444
A18: 8 | O18: 8247.73108 | P18: 34.5316 | Q18: 9.592111111 | R18: 9142.901629 | S18: 38.2795 | T18: 10.63319444 | U18: 11923.64114 | V18: 49.9219 | W18: 13.86719444
A19: 9 | O19: 8247.73108 | P19: 34.5316 | Q19: 9.592111111 | R19: 9142.901629 | S19: 38.2795 | T19: 10.63319444 | U19: 11923.64114 | V19: 49.9219 | W19: 13.86719444
A20: 10 | B20: 95.2654 | C20: 2.6744 | D20: 0.8536 | E20: 0.1422 | F20: 0.1324 | G20: <0,001 | H20: 0.0257 | I20: 0.0175 | J20: 0.0152 | K20: 0.0065 | L20: 0.6597 | M20: 0.2069 | N20: 0.706 | O20: 8254.585958 | P20: 34.5603 | Q20: 9.600083333 | R20: 9150.879082 | S20: 38.3129 | T20: 10.64247222 | U20: 11952.75645 | V20: 50.0438 | W20: 13.90105556 | X20: * | Y20: *
A21: 11 | B21: 95.2514 | C21: 2.6682 | D21: 0.8539 | E21: 0.1427 | F21: 0.1345 | G21: <0,001 | H21: 0.0271 | I21: 0.0187 | J21: 0.0154 | K21: 0.0066 | L21: 0.6755 | M21: 0.2053 | N21: 0.7061 | O21: 8254.299343 | P21: 34.5591 | Q21: 9.59975 | R21: 9150.544698 | S21: 38.3115 | T21: 10.64208333 | U21: 11951.08453 | V21: 50.0368 | W21: 13.89911111 | X21: * | Y21: *
A22: 12 | B22: 94.469 | C22: 3.0018 | D22: 1.0484 | E22: 0.1677 | F22: 0.1951 | G22: <0,001 | H22: 0.0449 | I22: 0.0351 | J22: 0.0295 | K22: 0.0068 | L22: 0.7586 | M22: 0.2423 | N22: 0.7139 | O22: 8318.405582 | P22: 34.8275 | Q22: 9.674305556 | R22: 9218.854625 | S22: 38.5975 | T22: 10.72152778 | U22: 11974.20481 | V22: 50.1336 | W22: 13.926 | X22: * | Y22: *
A23: 13 | B23: 94.543 | C23: 2.965 | D23: 1.0376 | E23: 0.1664 | F23: 0.1933 | G23: <0,001 | H23: 0.0441 | I23: 0.0343 | J23: 0.0289 | K23: 0.0064 | L23: 0.7425 | M23: 0.2376 | N23: 0.7133 | O23: 8315.300586 | P23: 34.8145 | Q23: 9.670694444 | R23: 9215.606321 | S23: 38.5839 | T23: 10.71775 | U23: 11974.89747 | V23: 50.1365 | W23: 13.92680556 | X23: * | Y23: *
A24: 14 | O24: 8315.300586 | P24: 34.8145 | Q24: 9.670694444 | R24: 9215.606321 | S24: 38.5839 | T24: 10.71775 | U24: 11974.89747 | V24: 50.1365 | W24: 13.92680556
A25: 15 | B25: 94.6357 | C25: 2.9249 | D25: 1.0068 | E25: 0.1636 | F25: 0.1842 | G25: <0,001 | H25: 0.042 | I25: 0.0326 | J25: 0.028 | K25: 0.0076 | L25: 0.7386 | M25: 0.2353 | N25: 0.7124 | O25: 8305.913942 | P25: 34.7752 | Q25: 9.659777778 | R25: 9205.574793 | S25: 38.5419 | T25: 10.70608333 | U25: 11969.95336 | V25: 50.1158 | W25: 13.92105556 | X25: * | Y25: *
A26: 16 | B26: 94.9719 | C26: 2.7729 | D26: 0.9069 | E26: 0.1465 | F26: 0.1537 | G26: 0.001 | H26: 0.033 | I26: 0.0244 | J26: 0.0195 | K26: 0.0066 | L26: 0.7486 | M26: 0.215 | N26: 0.7086 | O26: 8269.298865 | P26: 34.6219 | Q26: 9.617194444 | R26: 9166.356296 | S26: 38.3777 | T26: 10.66047222 | U26: 11950.41576 | V26: 50.034 | W26: 13.89833333 | X26: * | Y26: * | Z26: <0,0001 | AA26: 0.00026
A27: 17 | B27: 94.6447 | C27: 2.9378 | D27: 0.991 | E27: 0.1598 | F27: 0.1758 | G27: <0,001 | H27: 0.0396 | I27: 0.0298 | J27: 0.0228 | K27: 0.0078 | L27: 0.7547 | M27: 0.2356 | N27: 0.7119 | O27: 8298.294757 | P27: 34.7433 | Q27: 9.650916667 | R27: 9197.33461 | S27: 38.5074 | T27: 10.6965 | U27: 11963.57617 | V27: 50.0891 | W27: 13.91363889 | X27: * | Y27: *
A28: 18 | B28: 94.4385 | C28: 3.0134 | D28: 1.0561 | E28: 0.17 | F28: 0.1968 | G28: <0,001 | H28: 0.0453 | I28: 0.0356 | J28: 0.0346 | K28: 0.0068 | L28: 0.7596 | M28: 0.2425 | N28: 0.7143 | O28: 8322.513732 | P28: 34.8447 | Q28: 9.679083333 | R28: 9223.273274 | S28: 38.616 | T28: 10.72666667 | U28: 11976.49773 | V28: 50.1432 | W28: 13.92866667 | X28: * | Y28: *
A29: 19 | B29: 94.4557 | C29: 2.975 | D29: 1.0385 | E29: 0.1526 | F29: 0.1956 | G29: 0.0022 | H29: 0.044 | I29: 0.0369 | J29: 0.0386 | K29: 0.0071 | L29: 0.8037 | M29: 0.25 | N29: 0.7149 | O29: 8316.614238 | P29: 34.82 | Q29: 9.672222222 | R29: 9217.063281 | S29: 38.59 | T29: 10.71944444 | U29: 11966 | V29: =U29/238.8459 -> 50.09924809 | W29: 13.9164578 | X29: * | Y29: *
A30: 20 | O30: 8316.614238 | P30: 34.82 | Q30: 9.672222222 | R30: 9217.063281 | S30: 38.59 | T30: 10.71944444 | U30: 11966 | V30: 50.09924809 | W30: 13.9164578 | AD30: =IF(AC30=100,"ОК"," ") -> 
A31: 21 | O31: 8316.614238 | P31: 34.82 | Q31: 9.672222222 | R31: 9217.063281 | S31: 38.59 | T31: 10.71944444 | U31: 11966 | V31: 50.09924809 | W31: 13.9164578
A32: 22 | B32: 94.668 | C32: 2.9225 | D32: 0.9998 | E32: 0.1484 | F32: 0.1771 | G32: 0.0021 | H32: 0.0384 | I32: 0.0312 | J32: 0.0331 | K32: 0.0071 | L32: 0.7254 | M32: 0.2468 | N32: 0.7128 | O32: 8304.671943 | P32: 34.77 | Q32: 9.658333333 | R32: 9205.120986 | S32: 38.54 | T32: 10.70555556 | U32: 11969 | V32: 50.11180849 | W32: 13.9199468 | X32: * | Y32: *
A33: 23 | B33: 94.4942 | C33: 2.9745 | D33: 1.0242 | E33: 0.1507 | F33: 0.1888 | G33: 0.0022 | H33: 0.0423 | I33: 0.0349 | J33: 0.0375 | K33: 0.0065 | L33: 0.7938 | M33: 0.2504 | N33: 0.7144 | O33: 8311.83732 | P33: 34.8 | Q33: 9.666666667 | R33: 9212.286363 | S33: 38.57 | T33: 10.71388889 | U33: 11964 | V33: 50.09087449 | W33: 13.9141318 | X33: -15.5 | Y33: -14.2 | AB33: відсут. | AD33: =IF(AC33=100,"ОК"," ") -> 
A34: 24 | B34: 93.9951 | C34: 3.167 | D34: 1.1388 | E34: 0.1656 | F34: 0.2268 | G34: 0.0025 | H34: 0.0539 | I34: 0.046 | J34: 0.0533 | K34: 0.0071 | L34: 0.8698 | M34: 0.2741 | N34: 0.7196 | O34: 8352.441123 | P34: 34.97 | Q34: 9.713888889 | R34: 9255.278625 | S34: 38.75 | T34: 10.76388889 | U34: 11976 | V34: 50.14111609 | W34: 13.9280878 | X34: -13.6 | Y34: -12.9
A35: 25 | B35: 94.1958 | C35: 3.1141 | D35: 1.1007 | E35: 0.1609 | F35: 0.211 | G35: 0.0023 | H35: 0.0486 | I35: 0.0412 | J35: 0.0467 | K35: 0.007 | L35: 0.8041 | M35: 0.2676 | N35: 0.7176 | O35: 8340.498828 | P35: 34.92 | Q35: 9.7 | R35: 9243.33633 | S35: 38.7 | T35: 10.75 | U35: 11978 | V35: 50.14948969 | W35: 13.9304138 | X35: -14.6 | Y35: -12.6
A36: 26 | B36: 94.9114 | C36: 2.8822 | D36: 0.9342 | E36: 0.1415 | F36: 0.1519 | G36: 0.0018 | H36: 0.03 | I36: 0.0235 | J36: 0.0256 | K36: 0.0075 | L36: 0.6536 | M36: 0.2367 | N36: 0.7101 | O36: 8287.95273 | P36: 34.7 | Q36: 9.638888889 | R36: 9186.013314 | S36: 38.46 | T36: 10.68333333 | U36: 11966 | V36: 50.09924809 | W36: 13.9164578 | X36: -12.6 | Y36: -11.5
A37: 27 | O37: 8287.95273 | P37: 34.7 | Q37: 9.638888889 | R37: 9186.013314 | S37: 38.46 | T37: 10.68333333 | U37: 11961 | V37: 50.1 | W37: 13.91666667
A38: 28 | O38: 8287.95273 | P38: 34.7 | Q38: 9.638888889 | R38: 9186.013314 | S38: 38.46 | T38: 10.68333333 | U38: 11966 | V38: 50.09924809 | W38: 13.9164578
A39: 29 | B39: 95.3303 | C39: 2.6726 | D39: 0.8682 | E39: 0.1361 | F39: 0.1332 | G39: 0.0016 | H39: 0.0228 | I39: 0.0167 | J39: 0.0119 | K39: 0.007 | L39: 0.5993 | M39: 0.2004 | N39: 0.7062 | O39: 8261.679681 | P39: 34.59 | Q39: 9.608333333 | R39: 9157.351806 | S39: 38.34 | T39: 10.65 | U39: 11964 | V39: 50.09087449 | W39: 13.9141318 | X39: -12 | Y39: -10.2
A40: 30 | B40: 95.376 | C40: 2.645 | D40: 0.873 | E40: 0.135 | F40: 0.1322 | G40: 0.0015 | H40: 0.0223 | I40: 0.0164 | J40: 0.0116 | K40: 0.007 | L40: 0.5838 | M40: 0.1988 | N40: 0.7059 | O40: 8259.291222 | P40: 34.58 | Q40: 9.605555556 | R40: 9157.351806 | S40: 38.34 | T40: 10.65 | U40: 11963.79113 | V40: 50.09 | W40: 13.91388889 | X40: -12.4 | Y40: -11
A41: 31 | B41: 94.8539 | C41: 2.8864 | D41: 0.9733 | E41: 0.1466 | F41: 0.1643 | G41: 0.0018 | H41: 0.0321 | I41: 0.0257 | J41: 0.0225 | K41: 0.0062 | L41: 0.6537 | M41: 0.2336 | N41: 0.7109 | O41: 8297.506566 | P41: 34.74 | Q41: 9.65 | R41: 9195.56715 | S41: 38.5 | T41: 10.69444444 | U41: 11973.34497 | V41: 50.13 | W41: 13.925 | X41: -18.2 | Y41: -18
A42: Рівень одоризації відповідає чинним нормативним документам | O42: =SUMPRODUCT(O11:O41,' розрахунок'!AC6:AC36)/' розрахунок'!AC37 -> 8285.326668 | P42: =SUMPRODUCT(P11:P41,' розрахунок'!AC6:AC36)/' розрахунок'!AC37 -> 34.6890052 | Q42: =SUMPRODUCT(Q11:Q41,' розрахунок'!AC6:AC36)/' розрахунок'!AC37 -> 9.635834779 | R42: =SUMPRODUCT(R11:R41,' розрахунок'!AC6:AC36)/' розрахунок'!AC37 -> 9183.513005 | S42: =SUMPRODUCT(S11:S41,' розрахунок'!AC6:AC36)/' розрахунок'!AC37 -> 38.44953171 | T42: =SUMPRODUCT(T11:T41,' розрахунок'!AC6:AC36)/' розрахунок'!AC37 -> 10.68042547
H43: Середньозважене значення теплоти згоряння:
A44: * | B44: -прилад у ремонті
B47: Начальник управління Херсонського ЛВУМГ Доскоч М.В. 01.06.2017
C48: Підрозділу підприємства, якому підпорядкована лабораторія | O48: прізвище | R48: підпис | V48: дата
B49: Завідувач лабораторією Камишанова О.С. 01.06.2017
C50: Лабораторія, де здійснювалось вимірювання газу | O50: прізвище | R50: підпис | V50: дата
B51: Начальник служби метрології Скавронський Є.К. 01.06.2017
C52: Підрозділу, відповідального за облік газу за маршрутом | O52: прізвище | R52: підпис | V52: дата

Sheet розрахунок
A1: Додаток до Паспорту фізико-хімічних показників природного газу по маршруту № 656
A3: Число місяця | B3: Теплота згоряння вища, МДж/м3 | C3: Херсонська область | AC3: Загальний обсяг газу, м3
C4: Обсяг газу переданого за добу, м3
C5: ГРС Херсон -1 | D5: ГРС Херсон-2 | E5: ГРС Белозірка | F5: ГРС Станіслав | G5: ГРС Східне | H5: ГРС Садове | I5: ГРС Цюрупинск | J5: ГРС Виноградове | K5: ГРС Н.Маячка | L5: ГРС Обривки | M5: ГРС Нова Каховка | N5: ГРС Каховка | O5: ГРС Каховка (Коробки) | P5: ГРС Раздольне | Q5: ГРС Брилівка | R5: ГРС Каланчак | S5: ГРС Скадовськ | T5: ГРС Новоолександрівка | U5: ГРС Чаплинка | V5: ГРС Хрестівка | W5: ГРС Асканія Нова | X5: ГРС Асканія Нова (Тавричанка) | Y5: ГРС Червоний Чабан | Z5: ТОВ"РИТЕЙЛ-КР" | AA5: РВУ" ХАРКІВАВТОГАЗ" | AB5: ТОВ"ТЕК"ІТЕРА"
A6: 1 | B6: 38.2608 | C6: 83472 | D6: 0 | E6: 7803 | F6: 3027 | G6: 3554 | H6: 1155 | I6: 18715 | J6: 1381 | K6: 1773 | L6: 0 | M6: 43576 | N6: 25142 | O6: 0 | P6: 376 | Q6: 3647 | R6: 4718 | S6: 10955 | T6: 1074 | U6: 4548 | V6: 1563 | W6: 0 | X6: 2191 | Y6: 1148 | Z6: 4001 | AA6: 0 | AB6: 510 | AC6: =SUM(C6:AB6) -> 224329
A7: 2 | B7: 38.2608 | C7: 92761 | D7: 0 | E7: 6842 | F7: 2544 | G7: 3454 | H7: 979 | I7: 17219 | J7: 1242 | K7: 1596 | L7: 0 | M7: 43903 | N7: 24216 | O7: 0 | P7: 411 | Q7: 3316 | R7: 4747 | S7: 10067 | T7: 947 | U7: 3634 | V7: 1346 | W7: 0 | X7: 1969 | Y7: 979 | Z7: 4815 | AA7: 0 | AB7: 1936 | AC7: 228923
A8: 3 | B8: 38.2218 | C8: 94566 | D8: 0 | E8: 5906 | F8: 2252 | G8: 3283 | H8: 853 | I8: 17289 | J8: 1118 | K8: 1414 | L8: 0 | M8: 39906 | N8: 21754 | O8: 0 | P8: 380 | Q8: 2930 | R8: 4393 | S8: 9929 | T8: 901 | U8: 3767 | V8: 1176 | W8: 0 | X8: 1706 | Y8: 826 | Z8: 5754 | AA8: 467 | AB8: 2170 | AC8: 222740
A9: 4 | B9: 38.1853 | C9: 96103 | D9: 0 | E9: 5666 | F9: 2208 | G9: 3211 | H9: 842 | I9: 19901 | J9: 1082 | K9: 1424 | L9: 0 | M9: 36759 | N9: 22622 | O9: 0 | P9: 327 | Q9: 2830 | R9: 3988 | S9: 8962 | T9: 852 | U9: 3534 | V9: 1128 | W9: 0 | X9: 1880 | Y9: 811 | Z9: 5715 | AA9: 406 | AB9: 2108 | AC9: 222359
A10: 5 | B10: 38.2795 | C10: 95262 | D10: 0 | E10: 4843 | F10: 2184 | G10: 3601 | H10: 858 | I10: 18732 | J10: 1142 | K10: 1431 | L10: 0 | M10: 39323 | N10: 17528 | O10: 0 | P10: 331 | Q10: 2899 | R10: 4076 | S10: 9758 | T10: 837 | U10: 4057 | V10: 1112 | W10: 0 | X10: 1678 | Y10: 807 | Z10: 5705 | AA10: 609 | AB10: 2390 | AC10: 219163
A11: 6 | B11: 38.2795 | C11: 84400 | D11: 0 | E11: 5891 | F11: 2192 | G11: 3421 | H11: 900 | I11: 17150 | J11: 1205 | K11: 1471 | L11: 0 | M11: 40521 | N11: 19257 | O11: 0 | P11: 339 | Q11: 2982 | R11: 4238 | S11: 10038 | T11: 869 | U11: 3366 | V11: 1140 | W11: 0 | X11: 1800 | Y11: 926 | Z11: 4392 | AA11: 0 | AB11: 1923 | AC11: 208421
A12: 7 | B12: 38.2795 | C12: 80785 | D12: 0 | E12: 5893 | F12: 2355 | G12: 3143 | H12: 887 | I12: 14977 | J12: 1147 | K12: 1391 | L12: 0 | M12: 39739 | N12: 21638 | O12: 0 | P12: 308 | Q12: 2895 | R12: 4022 | S12: 9239 | T12: 850 | U12: 4125 | V12: 1160 | W12: 0 | X12: 1720 | Y12: 844 | Z12: 3953 | AA12: 0 | AB12: 985 | AC12: 202056
A13: 8 | B13: 38.2795 | C13: 89344 | D13: 0 | E13: 6625 | F13: 2935 | G13: 3728 | H13: 956 | I13: 16714 | J13: 1282 | K13: 1496 | L13: 0 | M13: 41120 | N13: 22687 | O13: 0 | P13: 367 | Q13: 3264 | R13: 4260 | S13: 10363 | T13: 890 | U13: 3645 | V13: 1237 | W13: 0 | X13: 1769 | Y13: 956 | Z13: 4132 | AA13: 0 | AB13: 1164 | AC13: 218934
A14: 9 | B14: 38.2795 | C14: 92836 | D14: 0 | E14: 6485 | F14: 2571 | G14: 3133 | H14: 903 | I14: 15799 | J14: 1173 | K14: 1398 | L14: 0 | M14: 40612 | N14: 22663 | O14: 0 | P14: 338 | Q14: 3045 | R14: 4092 | S14: 9946 | T14: 860 | U14: 4070 | V14: 1087 | W14: 0 | X14: 1734 | Y14: 857 | Z14: 4665 | AA14: 0 | AB14: 1574 | AC14: 219841
A15: 10 | B15: 38.3129 | C15: 116477 | D15: 0 | E15: 7767 | F15: 3103 | G15: 4126 | H15: 881 | I15: 22767 | J15: 1323 | K15: 1621 | L15: 0 | M15: 44106 | N15: 23708 | O15: 0 | P15: 419 | Q15: 3305 | R15: 4299 | S15: 12166 | T15: 933 | U15: 3745 | V15: 1286 | W15: 0 | X15: 1900 | Y15: 921 | Z15: 1874 | AA15: 1568 | AB15: 2244 | AC15: 260539
A16: 11 | B16: 38.3115 | C16: 128004 | D16: 0 | E16: 9194 | F16: 3592 | G16: 4400 | H16: 1248 | I16: 39346 | J16: 1715 | K16: 2057 | L16: 0 | M16: 46725 | N16: 24159 | O16: 0 | P16: 504 | Q16: 4080 | R16: 4722 | S16: 14058 | T16: 1099 | U16: 5501 | V16: 1813 | W16: 0 | X16: 2087 | Y16: 1097 | Z16: 0 | AA16: 1380 | AB16: 2240 | AC16: 299021
A17: 12 | B17: 38.5975 | C17: 124109 | D17: 0 | E17: 9166 | F17: 3626 | G17: 3907 | H17: 1215 | I17: 38231 | J17: 1639 | K17: 1950 | L17: 0 | M17: 46745 | N17: 24633 | O17: 0 | P17: 491 | Q17: 3787 | R17: 4666 | S17: 13592 | T17: 1059 | U17: 4391 | V17: 1561 | W17: 0 | X17: 1986 | Y17: 1052 | Z17: 3263 | AA17: 1379 | AB17: 2539 | AC17: 294987
A18: 13 | B18: 38.5839 | C18: 101309 | D18: 0 | E18: 6839 | F18: 2811 | G18: 2703 | H18: 1026 | I18: 30890 | J18: 1351 | K18: 1602 | L18: 0 | M18: 43428 | N18: 25148 | O18: 0 | P18: 455 | Q18: 3247 | R18: 4308 | S18: 11104 | T18: 923 | U18: 4421 | V18: 1315 | W18: 0 | X18: 1934 | Y18: 944 | Z18: 2943 | AA18: 566 | AB18: 1607 | AC18: 250874
A19: 14 | B19: 38.5839 | C19: 126003 | D19: 0 | E19: 12199 | F19: 4695 | G19: 4158 | H19: 1615 | I19: 38574 | J19: 1834 | K19: 2140 | L19: 0 | M19: 52417 | N19: 30306 | O19: 0 | P19: 712 | Q19: 4446 | R19: 5068 | S19: 13729 | T19: 1233 | U19: 5224 | V19: 1919 | W19: 0 | X19: 2440 | Y19: 1156 | Z19: 4300 | AA19: 0 | AB19: 1095 | AC19: 315263
A20: 15 | B20: 38.5419 | C20: 121300 | D20: 0 | E20: 9224 | F20: 3439 | G20: 3626 | H20: 1360 | I20: 36489 | J20: 1601 | K20: 1762 | L20: 0 | M20: 48751 | N20: 28200 | O20: 0 | P20: 551 | Q20: 4017 | R20: 4751 | S20: 12801 | T20: 1100 | U20: 5264 | V20: 1632 | W20: 0 | X20: 2153 | Y20: 1011 | Z20: 4451 | AA20: 794 | AB20: 1882 | AC20: 296159
A21: 16 | B21: 38.3777 | C21: 108112 | D21: 0 | E21: 6662 | F21: 2350 | G21: 2342 | H21: 1050 | I21: 29067 | J21: 1344 | K21: 1481 | L21: 0 | M21: 43950 | N21: 22872 | O21: 0 | P21: 409 | Q21: 3091 | R21: 4171 | S21: 10632 | T21: 885 | U21: 3702 | V21: 1158 | W21: 0 | X21: 1744 | Y21: 863 | Z21: 6177 | AA21: 415 | AB21: 2421 | AC21: 254898
A22: 17 | B22: 38.5074 | C22: 112370 | D22: 0 | E22: 6647 | F22: 2499 | G22: 2400 | H22: 1170 | I22: 32106 | J22: 1470 | K22: 1560 | L22: 0 | M22: 44562 | N22: 25569 | O22: 0 | P22: 420 | Q22: 3096 | R22: 4123 | S22: 9532 | T22: 918 | U22: 4215 | V22: 1189 | W22: 0 | X22: 1764 | Y22: 785 | Z22: 5896 | AA22: 397 | AB22: 2444 | AC22: 265132
A23: 18 | B23: 38.616 | C23: 110944 | D23: 0 | E23: 6416 | F23: 3104 | G23: 2380 | H23: 1199 | I23: 30064 | J23: 1378 | K23: 1610 | L23: 0 | M23: 40543 | N23: 27559 | O23: 0 | P23: 426 | Q23: 3128 | R23: 4004 | S23: 10611 | T23: 961 | U23: 3787 | V23: 1234 | W23: 0 | X23: 1778 | Y23: 838 | Z23: 5723 | AA23: 503 | AB23: 2424 | AC23: 260614
A24: 19 | B24: 38.59 | C24: 105975 | D24: 0 | E24: 6512 | F24: 3162 | G24: 2403 | H24: 1288 | I24: 23615 | J24: 1364 | K24: 1543 | L24: 0 | M24: 40812 | N24: 20524 | O24: 0 | P24: 404 | Q24: 3007 | R24: 4277 | S24: 10644 | T24: 887 | U24: 4422 | V24: 1313 | W24: 0 | X24: 1757 | Y24: 976 | Z24: 5310 | AA24: 653 | AB24: 2571 | AC24: 243419
A25: 20 | B25: 38.59 | C25: 106662 | D25: 0 | E25: 8198 | F25: 2979 | G25: 2853 | H25: 1599 | I25: 23603 | J25: 1634 | K25: 1787 | L25: 0 | M25: 45862 | N25: 18589 | O25: 0 | P25: 493 | Q25: 3594 | R25: 4573 | S25: 12943 | T25: 1007 | U25: 3982 | V25: 1392 | W25: 0 | X25: 2008 | Y25: 1065 | Z25: 4741 | AA25: 538 | AB25: 1734 | AC25: 251836
A26: 21 | B26: 38.59 | C26: 108691 | D26: 0 | E26: 8091 | F26: 2860 | G26: 2769 | H26: 1837 | I26: 24872 | J26: 1906 | K26: 1846 | L26: 0 | M26: 46010 | N26: 20358 | O26: 0 | P26: 547 | Q26: 3807 | R26: 4682 | S26: 14744 | T26: 1106 | U26: 5221 | V26: 1615 | W26: 0 | X26: 2206 | Y26: 1151 | Z26: 4038 | AA26: 0 | AB26: 1128 | AC26: 259485
A27: 22 | B27: 38.54 | C27: 122777 | D27: 0 | E27: 8896 | F27: 3238 | G27: 2682 | H27: 789 | I27: 23735 | J27: 1763 | K27: 1967 | L27: 0 | M27: 46909 | N27: 26027 | O27: 0 | P27: 505 | Q27: 3587 | R27: 4652 | S27: 13024 | T27: 1054 | U27: 4815 | V27: 1668 | W27: 0 | X27: 2153 | Y27: 1079 | Z27: 5552 | AA27: 0 | AB27: 1894 | AC27: 278766
A28: 23 | B28: 38.57 | C28: 115199 | D28: 0 | E28: 6926 | F28: 2468 | G28: 2307 | H28: 486 | I28: 21233 | J28: 1444 | K28: 1647 | L28: 0 | M28: 44005 | N28: 23664 | O28: 0 | P28: 440 | Q28: 3198 | R28: 4483 | S28: 11655 | T28: 998 | U28: 4520 | V28: 1425 | W28: 0 | X28: 1872 | Y28: 964 | Z28: 5994 | AA28: 455 | AB28: 2176 | AC28: 257559
A29: 24 | B29: 38.75 | C29: 111721 | D29: 0 | E29: 6262 | F29: 2151 | G29: 2157 | H29: 506 | I29: 18900 | J29: 1391 | K29: 1524 | L29: 0 | M29: 42657 | N29: 22576 | O29: 0 | P29: 392 | Q29: 2995 | R29: 4307 | S29: 10476 | T29: 981 | U29: 3550 | V29: 1304 | W29: 0 | X29: 1766 | Y29: 887 | Z29: 5833 | AA29: 0 | AB29: 2450 | AC29: 244786
A30: 25 | B30: 38.7 | C30: 108861 | D30: 0 | E30: 6070 | F30: 2181 | G30: 2106 | H30: 741 | I30: 21003 | J30: 1346 | K30: 1459 | L30: 0 | M30: 37822 | N30: 21201 | O30: 0 | P30: 402 | Q30: 2912 | R30: 4272 | S30: 10267 | T30: 871 | U30: 4131 | V30: 1195 | W30: 0 | X30: 1711 | Y30: 810 | Z30: 5973 | AA30: 94 | AB30: 2358 | AC30: 237786
A31: 26 | B31: 38.46 | C31: 102264 | D31: 0 | E31: 5739 | F31: 2094 | G31: 1964 | H31: 818 | I31: 17380 | J31: 1379 | K31: 1413 | L31: 0 | M31: 40454 | N31: 18312 | O31: 0 | P31: 370 | Q31: 2796 | R31: 3895 | S31: 9622 | T31: 816 | U31: 3254 | V31: 1148 | W31: 0 | X31: 1605 | Y31: 816 | Z31: 5365 | AA31: 361 | AB31: 2235 | AC31: 224100
A32: 27 | B32: 38.46 | C32: 94469 | D32: 0 | E32: 6337 | F32: 2151 | G32: 2069 | H32: 910 | I32: 16637 | J32: 1444 | K32: 1448 | L32: 0 | M32: 39378 | N32: 20673 | O32: 0 | P32: 376 | Q32: 3025 | R32: 4165 | S32: 9482 | T32: 808 | U32: 4168 | V32: 1113 | W32: 0 | X32: 1697 | Y32: 898 | Z32: 3853 | AA32: 0 | AB32: 1658 | AC32: 216759
A33: 28 | B33: 38.46 | C33: 91143 | D33: 0 | E33: 6034 | F33: 2125 | G33: 2158 | H33: 909 | I33: 14235 | J33: 1319 | K33: 1357 | L33: 0 | M33: 39698 | N33: 22813 | O33: 0 | P33: 378 | Q33: 2879 | R33: 4078 | S33: 8882 | T33: 849 | U33: 3310 | V33: 1101 | W33: 0 | X33: 1669 | Y33: 829 | Z33: 4066 | AA33: 0 | AB33: 1565 | AC33: 211397
A34: 29 | B34: 38.34 | C34: 97202 | D34: 0 | E34: 5207 | F34: 2749 | G34: 1655 | H34: 687 | I34: 14042 | J34: 1254 | K34: 1305 | L34: 0 | M34: 40075 | N34: 21442 | O34: 0 | P34: 322 | Q34: 2607 | R34: 3846 | S34: 8955 | T34: 755 | U34: 3766 | V34: 969 | W34: 0 | X34: 1488 | Y34: 743 | Z34: 5136 | AA34: 35 | AB34: 2198 | AC34: 216438
A35: 30 | B35: 38.34 | C35: 96145 | D35: 0 | E35: 5022 | F35: 2570 | G35: 1724 | H35: 602 | I35: 15920 | J35: 1274 | K35: 1287 | L35: 0 | M35: 37114 | N35: 21041 | O35: 0 | P35: 323 | Q35: 2553 | R35: 3645 | S35: 8791 | T35: 782 | U35: 2887 | V35: 944 | W35: 0 | X35: 1268 | Y35: 743 | Z35: 6171 | AA35: 602 | AB35: 2227 | AC35: 213635
A36: 31 | B36: 38.5 | C36: 97818 | D36: 0 | E36: 5006 | F36: 2603 | G36: 1744 | H36: 689 | I36: 17152 | J36: 1245 | K36: 1253 | L36: 0 | M36: 38178 | N36: 19147 | O36: 0 | P36: 306 | Q36: 2494 | R36: 3755 | S36: 8751 | T36: 753 | U36: 3961 | V36: 970 | W36: 0 | X36: 1443 | Y36: 753 | Z36: 5888 | AA36: 1012 | AB36: 2500 | AC36: 217421
A37: Загальний обсяг газу, м3 | C37: =SUM(C6:C36) -> 3217084 | D37: =SUM(D6:D36) -> 0 | E37: 214368 | F37: 84818 | G37: 89161 | H37: 30958 | I37: 706357 | J37: 43190 | K37: 49013 | L37: 0 | M37: 1315660 | N37: 706028 | O37: 0 | P37: 12822 | Q37: 99459 | R37: 133276 | S37: 335718 | T37: 28858 | U37: 126983 | V37: 40213 | W37: 0 | X37: 56876 | Y37: =SUM(Y6:Y36) -> 28535 | Z37: 145679 | AA37: 12234 | AB37: 60350 | AC37: =SUM(AC6:AC36) -> 7537640
A38: Енергія, МДж | C38: =SUMPRODUCT(B6:B36,C6:C36) -> 123701386.3 | D38: =SUMPRODUCT(B6:B36,D6:D36) -> 0 | E38: =SUMPRODUCT(B6:B36,E6:E36) -> 8242662.843 | F38: =SUMPRODUCT(B6:B36,F6:F36) -> 3261082.145 | G38: =SUMPRODUCT(B6:B36,G6:G36) -> 3426021.85 | H38: =SUMPRODUCT(B6:B36,H6:H36) -> 1190347.123 | I38: =SUMPRODUCT(B6:B36,I6:I36) -> 27167396.46 | J38: =SUMPRODUCT(B6:B36,J6:J36) -> 1660813.691 | K38: =SUMPRODUCT(B6:B36,K6:K36) -> 1884421.615 | L38: =SUMPRODUCT(B6:B36,L6:L36) -> 0 | M38: =SUMPRODUCT(B6:B36,M6:M36) -> 50580160.11 | N38: =SUMPRODUCT(B6:B36,N6:N36) -> 27142718.42 | O38: =SUMPRODUCT(B6:B36,O6:O36) -> 0 | P38: =SUMPRODUCT(B6:B36,P6:P36) -> 493088.2003 | Q38: =SUMPRODUCT(B6:B36,Q6:Q36) -> 3823738.862 | R38: =SUMPRODUCT(B6:B36,R6:R36) -> 5123519.021 | S38: =SUMPRODUCT(B6:B36,S6:S36) -> 12908171.79 | T38: =SUMPRODUCT(B6:B36,T6:T36) -> 1109496.49 | U38: =SUMPRODUCT(B6:B36,U6:U36) -> 4882173.935 | V38: =SUMPRODUCT(B6:B36,V6:V36) -> 1546157.313 | W38: =SUMPRODUCT(B6:B36,W6:W36) -> 0 | X38: =SUMPRODUCT(B6:B36,X6:X36) -> 2186552.507 | Y38: =SUMPRODUCT(B6:B36,Y6:Y36) -> 1097017.391 | Z38: =SUMPRODUCT(B6:B36,Z6:Z36) -> 5601031.469 | AA38: =SUMPRODUCT(B6:B36,AA6:AA36) -> 470330.7449 | AB38: =SUMPRODUCT(B6:B36,AB6:AB36) -> 2320439.922 | AC38: =SUMPRODUCT(B6:B36,AC6:AC36) -> 289818728.2
A39: Теплота згоряння (середньозважене значення за місяць), МДж/м³ | C39: =C38/C37 -> 38.4514008 | E39: 38.45099475 | F39: 38.44799624 | G39: 38.42511692 | H39: 38.45038838 | I39: 38.46128297 | J39: 38.45366267 | K39: 38.44738365 | M39: 38.44470464 | N39: 38.4442521 | P39: 38.45641868 | Q39: 38.44537812 | R39: 38.44292312 | S39: 38.44944803 | T39: 38.44675619 | U39: 38.44746096 | V39: 38.44919089 | X39: 38.44420331 | Y39: 38.44462559 | Z39: 38.44776165 | AA39: 38.44455983 | AB39: 38.44970874 | AC39: =AC38/AC37 -> 38.44953171
A40: Теплота згоряння (середньозважене значення за місяць), ккал/м³ | C40: =C39*238.8459 -> 9183.959429 | D40: =D39*238.8459 ->  | E40: 9183.862448 | F40: 9183.146265 | G40: 9177.681633 | H40: 9183.717618 | I40: 9186.319746 | J40: 9184.499669 | K40: 9182.99995 | M40: 9182.36008 | N40: 9182.251993 | P40: 9185.15793 | Q40: 9182.520937 | R40: 9181.93457 | S40: 9183.49302 | T40: 9182.850083 | U40: 9183.018415 | V40: 9183.431603 | X40: 9182.24034 | Y40: 9182.341198 | Z40: 9183.090234 | AA40: 9182.325492 | AB40: 9183.555288 | AC40: 9183.513005
A41: Теплота згоряння (середньозважене значення за місяць), кВт*год./м³ | C41: =C39/3.6 -> 10.68094467 | D41: =D39/3.6 ->  | E41: 10.68083188 | F41: 10.67999896 | G41: 10.67364359 | H41: 10.68066344 | I41: 10.68368971 | J41: 10.68157296 | K41: 10.67982879 | M41: 10.67908462 | N41: 10.67895892 | P41: 10.68233852 | Q41: 10.6792717 | R41: 10.67858975 | S41: 10.68040223 | T41: 10.6796545 | U41: 10.67985027 | V41: 10.6803308 | X41: 10.67894536 | Y41: 10.67906266 | Z41: 10.67993379 | AA41: 10.6790444 | AB41: 10.68047465 | AC41: 10.68042547
AZ78: =AZ46*1000 -> 0
AZ79: =AZ47*1000 -> 0
AZ80: =AZ48*1000 -> 0
AZ81: =AZ49*1000 -> 0
AZ82: =AZ50*1000 -> 0
AZ83: =AZ51*1000 -> 0
AZ84: =AZ52*1000 -> 0
AZ85: =AZ53*1000 -> 0
AZ86: =AZ54*1000 -> 0
AZ87: =AZ55*1000 -> 0
AZ88: =AZ56*1000 -> 0
AZ89: =AZ57*1000 -> 0
AZ90: =AZ58*1000 -> 0
AZ91: =AZ59*1000 -> 0
AZ92: =AZ60*1000 -> 0
AZ93: =AZ61*1000 -> 0
AZ94: =AZ62*1000 -> 0
AZ95: =AZ63*1000 -> 0
AZ96: =AZ64*1000 -> 0
AZ97: =AZ65*1000 -> 0
AZ98: =AZ66*1000 -> 0
AZ99: =AZ67*1000 -> 0
AZ100: =AZ68*1000 -> 0
AZ101: =AZ69*1000 -> 0
AZ102: =AZ70*1000 -> 0
AZ103: =AZ71*1000 -> 0
AZ104: =AZ72*1000 -> 0
AZ105: =AZ73*1000 -> 0
AZ106: =AZ74*1000 -> 0
AZ107: =AZ75*1000 -> 0
AZ108: =AZ76*1000 -> 0
AZ109: =AZ77*1000 -> 0
AZ110: =AZ78*1000 -> 0
AZ111: =AZ79*1000 -> 0
AZ112: =AZ80*1000 -> 0
AZ113: =AZ81*1000 -> 0
AZ114: =AZ82*1000 -> 0
AZ115: =AZ83*1000 -> 0
AZ116: =AZ84*1000 -> 0
AZ117: =AZ85*1000 -> 0
AZ118: =AZ86*1000 -> 0
AZ119: =AZ87*1000 -> 0
AZ120: =AZ88*1000 -> 0
AZ121: =AZ89*1000 -> 0
AZ122: =AZ90*1000 -> 0
AZ123: =AZ91*1000 -> 0
AZ124: =AZ92*1000 -> 0
AZ125: =AZ93*1000 -> 0
AZ126: =AZ94*1000 -> 0
AZ127: =AZ95*1000 -> 0
AZ128: =AZ96*1000 -> 0
AZ129: =AZ97*1000 -> 0
AZ130: =AZ98*1000 -> 0
AZ131: =AZ99*1000 -> 0
AZ132: =AZ100*1000 -> 0
AZ133: =AZ101*1000 -> 0
AZ134: =AZ102*1000 -> 0
AZ135: =AZ103*1000 -> 0
AZ136: =AZ104*1000 -> 0
AZ137: =AZ105*1000 -> 0
AZ138: =AZ106*1000 -> 0
AZ139: =AZ107*1000 -> 0
AZ140: =AZ108*1000 -> 0
AZ141: =AZ109*1000 -> 0
AZ142: =AZ110*1000 -> 0
AZ143: =AZ111*1000 -> 0
AZ144: =AZ112*1000 -> 0
AZ145: =AZ113*1000 -> 0
AZ146: =AZ114*1000 -> 0
AZ147: =AZ115*1000 -> 0
AZ148: =AZ116*1000 -> 0
AZ149: =AZ117*1000 -> 0
AZ150: =AZ118*1000 -> 0
AZ151: =AZ119*1000 -> 0
AZ152: =AZ120*1000 -> 0
AZ153: =AZ121*1000 -> 0
AZ154: =AZ122*1000 -> 0
AZ155: =AZ123*1000 -> 0
AZ156: =AZ124*1000 -> 0
AZ157: =AZ125*1000 -> 0
AZ158: =AZ126*1000 -> 0
AZ159: =AZ127*1000 -> 0
AZ160: =AZ128*1000 -> 0
AZ161: =AZ129*1000 -> 0
AZ162: =AZ130*1000 -> 0
AZ163: =AZ131*1000 -> 0
AZ164: =AZ132*1000 -> 0
AZ165: =AZ133*1000 -> 0
AZ166: =AZ134*1000 -> 0
AZ167: =AZ135*1000 -> 0
AZ168: =AZ136*1000 -> 0
AZ169: =AZ137*1000 -> 0
AZ170: =AZ138*1000 -> 0
AZ171: =AZ139*1000 -> 0
AZ172: =AZ140*1000 -> 0
AZ173: =AZ141*1000 -> 0
AZ174: =AZ142*1000 -> 0
AZ175: =AZ143*1000 -> 0
AZ176: =AZ144*1000 -> 0
AZ177: =AZ145*1000 -> 0
AZ178: =AZ146*1000 -> 0
AZ179: =AZ147*1000 -> 0
AZ180: =AZ148*1000 -> 0
AZ181: =AZ149*1000 -> 0
AZ182: =AZ150*1000 -> 0
AZ183: =AZ151*1000 -> 0
AZ184: =AZ152*1000 -> 0
AZ185: =AZ153*1000 -> 0
AZ186: =AZ154*1000 -> 0
AZ187: =AZ155*1000 -> 0
AZ188: =AZ156*1000 -> 0
AZ189: =AZ157*1000 -> 0
AZ190: =AZ158*1000 -> 0
AZ191: =AZ159*1000 -> 0
AZ192: =AZ160*1000 -> 0
AZ193: =AZ161*1000 -> 0
AZ194: =AZ162*1000 -> 0
AZ195: =AZ163*1000 -> 0
AZ196: =AZ164*1000 -> 0
AZ197: =AZ165*1000 -> 0
AZ198: =AZ166*1000 -> 0
AZ199: =AZ167*1000 -> 0
AZ200: =AZ168*1000 -> 0
AZ201: =AZ169*1000 -> 0
AZ202: =AZ170*1000 -> 0
AZ203: =AZ171*1000 -> 0
AZ204: =AZ172*1000 -> 0
AZ205: =AZ173*1000 -> 0
AZ206: =AZ174*1000 -> 0
AZ207: =AZ175*1000 -> 0
AZ208: =AZ176*1000 -> 0
AZ209: =AZ177*1000 -> 0
AZ210: =AZ178*1000 -> 0
AZ211: =AZ179*1000 -> 0
AZ212: =AZ180*1000 -> 0
AZ213: =AZ181*1000 -> 0
AZ214: =AZ182*1000 -> 0
AZ215: =AZ183*1000 -> 0
AZ216: =AZ184*1000 -> 0
AZ217: =AZ185*1000 -> 0
AZ218: =AZ186*1000 -> 0
AZ219: =AZ187*1000 -> 0
AZ220: =AZ188*1000 -> 0
AZ221: =AZ189*1000 -> 0
AZ222: =AZ190*1000 -> 0
AZ223: =AZ191*1000 -> 0
AZ224: =AZ192*1000 -> 0
AZ225: =AZ193*1000 -> 0
AZ226: =AZ194*1000 -> 0
AZ227: =AZ195*1000 -> 0
AZ228: =AZ196*1000 -> 0
AZ229: =AZ197*1000 -> 0
AZ230: =AZ198*1000 -> 0
AZ231: =AZ199*1000 -> 0
AZ232: =AZ200*1000 -> 0
AZ233: =AZ201*1000 -> 0
AZ234: =AZ202*1000 -> 0
AZ235: =AZ203*1000 -> 0
AZ236: =AZ204*1000 -> 0
AZ237: =AZ205*1000 -> 0
... 126 more rows

Sheet додаток
A1: Додаток до Паспорту фізико-хімічних показників природного газу № 656
A3: Область | B3: ГРС, прямий споживач | C3: Cередньозважене значення вищої теплоти згоряння
C4: МДж/м³ | D4: ккал/м³ | E4: кВт*год./м³
A5: Херсонська область | B5: ГРС-1 Херсон | C5: 38.45 | D5: 9184 | E5: 10.68
B6: ГРС-2 Херсон | C6: 0 | D6: 0 | E6: 0
B7: ГРС Белозірка | C7: 38.45 | D7: 9184 | E7: 10.68
B8: ГРС Станіслав | C8: 38.45 | D8: 9183 | E8: 10.68
B9: ГРС Східне | C9: 38.43 | D9: 9178 | E9: 10.67
B10: ГРС Садове | C10: 38.45 | D10: 9184 | E10: 10.68
B11: ГРС Цюрупинск | C11: 38.46 | D11: 9186 | E11: 10.68
B12: ГРС Виноградове | C12: 38.45 | D12: 9184 | E12: 10.68
B13: ГРС Нова Маячка | C13: 38.45 | D13: 9183 | E13: 10.68
B14: ГРС Обривки | C14: 0 | D14: 0 | E14: 0
B15: ГРС Нова Каховка | C15: 38.44 | D15: 9182 | E15: 10.68
B16: ГРС Каховка (Лінія Каховка) | C16: 38.44 | D16: 9182 | E16: 10.68
B17: ГРС Каховка (лІнія Коробки) | C17: 0 | D17: 0 | E17: 0
B18: ГРС Раздольне | C18: 38.46 | D18: 9185 | E18: 10.68
B19: ГРС Брилівка | C19: 38.45 | D19: 9183 | E19: 10.68
B20: ГРС Каланчак | C20: 38.44 | D20: 9182 | E20: 10.68
B21: ГРС Скадовськ | C21: 38.45 | D21: 9183 | E21: 10.68
B22: ГРС Новоолександрівка | C22: 38.45 | D22: 9183 | E22: 10.68
B23: ГРС Чаплинка | C23: 38.45 | D23: 9183 | E23: 10.68
B24: ГРС Хрестівка | C24: 38.45 | D24: 9183 | E24: 10.68
B25: ГРС Асканія Нова | C25: 0 | D25: 0 | E25: 0
B26: ГРС Асканія Нова (Тавричанка) | C26: 38.44 | D26: 9182 | E26: 10.68
B27: ГРС Червоний Чабан | C27: 38.44 | D27: 9182 | E27: 10.68
B28: ТОВ " РИТЕЙЛ - КР" | C28: 38.45 | D28: 9183 | E28: 10.68
B29: РВУ " ХАРКІВАВТОГАЗ" | C29: 38.44 | D29: 9182 | E29: 10.68
B30: ТОВ"ТЕК" ІТЕРА" | C30: 38.45 | D30: 9184 | E30: 10.68
A31: Середньозважене значення вищої теплоти згоряння по маршруту № 656 | C31: 38.45 | D31: 9184 | E31: 10.68
A35: Начальника управління Херсонського ЛВУМГ Доскоч М.В. | F35: 2017-06-01
A36: Підрозділу підприємства, якому підпорядкована лабораторія | D36: прізвище | E36: підпис | F36: дата
A37: Завідувач лабораторії Камишанова О.С. | F37: 2017-06-01
A38: Лабораторія, де здійснювалось вимірювання газу | D38: прізвище | E38: підпис | F38: дата
A39: Начальник служби ГВ та М Скавронський Є.К. | F39: 2017-06-01
A40: Підрозділу, відповідального за облік газу за маршрутом | D40: прізвище | E40: підпис | F40: дата

Sheet variablesList (hidden)
A1: 3 | B1: x:\gaysin | C1: 10, 11, 24, 25, 127, 128, 132, 180, 207, 215 | D1: x:\
B2: x:\Illinci
B3: x:\Talne
